Cogmind - Beta 12 X1 @@@ ROGUE MODE // 2022.06.30 @ 18:26:38 Player: aoemica Result: Destroyed by 99-TNT with 99-TNT's Nukerbomber Performance ------------- Evolutions (1) 500 Regions Visited (6) 1200 Robots Destroyed (88) 440 Value Destroyed (1978) 1978 Prototype IDs (25) 500 Alien Tech Used (0) 0 Bonus (387) 387 TOTAL SCORE: 5005 Bonus ------- High Alert Combat Kills 87 Aligned with FarCom 300 Cogmind --------- Core Integrity 0/400 Matter 251/300 Energy 81/100 System Corruption 1% Temperature Cool (0) Movement Core (50) Location -8/Mines Parts ------- > --- POWER (1) -------- (None) > --- PROPULSION (2) --- (None) > --- UTILITY (3) ------ (None) > --- WEAPON (3) ------- (None) > --- INVENTORY (5) ---- Light Treads Light Treads High-capacity Storage Unit Autogun Autogun Peak State ------------ > --- POWER ------------ Light Nuclear Core > --- PROPULSION ------- Improved Treads Improved Treads > --- UTILITY ---------- Improved Heat Sink High-capacity Storage Unit Hardened Light Armor Plating > --- WEAPON ----------- Autogun Autogun Autogun > --- INVENTORY -------- Ion Engine Nuclear Core Nuclear Core Fission Core Light Treads Light Treads Light Treads Light Treads Improved Treads Large Matter Pod Improved Targeting Computer Hardened Light Armor Plating Light EM Pulse Cannon Autogun Autogun Autogun Autogun Autogun Rocket Launcher [Rating: 22] Favorites ----------- Power Ion Engine Engine Ion Engine Power Core Light Nuclear Core Propulsion Light Treads Treads Light Treads Leg Aluminum Leg Utility Large Storage Unit Device Improved Heat Sink Storage Large Storage Unit Processor Targeting Computer Protection Medium Armor Plating Weapon Autogun Energy Gun EM Shotgun Energy Cannon Light EM Pulse Cannon Ballistic Gun Autogun Launcher Rocket Launcher Build | -11 -10 -10 -9 -9 -9 -8 ------- Run | Scr Mat Min Mat Min Exi Min Slots Evolved 2 | . . . 2 . . . Power . | . . . . . . . Propulsion . | . . . . . . . Utility 1 | . . . 1 . . . Weapon 1 | . . . 1 . . . Parts Attached 63 | . 20 1 29 5 5 3 Power 5 | . 1 . 3 1 . . Engine 3 | . 1 . 2 . . . Core 2 | . . . 1 1 . . Reactor . | . . . . . . . Propulsion 14 | . 5 . 8 . . 1 Treads 13 | . 4 . 8 . . 1 Leg 1 | . 1 . . . . . Wheel . | . . . . . . . Hover . | . . . . . . . Flight . | . . . . . . . Utility 13 | . 2 1 7 2 1 . Device 3 | . . . 2 1 . . Storage 3 | . 1 . 1 . 1 . Processor 1 | . 1 . . . . . Hackware . | . . . . . . . Protection 6 | . . 1 4 1 . . Artifact . | . . . . . . . Weapon 31 | . 12 . 11 2 4 2 Energy Gun 6 | . 6 . . . . . Energy Cannon 7 | . 2 . 5 . . . Ballistic Gun 15 | . 4 . 5 1 3 2 Ballistic Cannon . | . . . . . . . Launcher 3 | . . . 1 1 1 . Special Weapon . | . . . . . . . Impact Weapon . | . . . . . . . Slashing Weapon . | . . . . . . . Piercing Weapon . | . . . . . . . Special Melee Weapon . | . . . . . . . Unidentified Prototypes . | . . . . . . . Parts Lost 9 | . 1 1 . . 1 6 Power 1 | . . . . . . 1 Propulsion 3 | . . . . . . 3 Utility 1 | . . 1 . . . . Weapon 4 | . 1 . . . 1 2 Highest Loss Streak 6 | . 1 1 . . 1 6 To Critical Strikes . | . . . . . . . Average Slot Usage (%) 93 | . 99 97 99 100 68 91 Engine 8 | . 14 14 10 . . . Core 3 | . . . . 11 11 8 Treads 17 | . 3 28 22 22 22 22 Leg 6 | . 24 . . . . . Device 7 | . . . 10 11 11 11 Storage 12 | . 14 14 11 11 11 8 Processor 3 | . 13 . . . . . Protection 8 | . . 11 10 11 11 8 Energy Gun 3 | . 11 . . . . . Energy Cannon 8 | . 7 . 21 . . . Ballistic Gun 13 | . 9 28 11 33 1 30 Naked Turns . | . . . . . . . Heaviest Build 61 | 12 33 32 49 42 61 60 Greatest Support 46 | 20 40 40 46 46 46 46 Greatest Overweight (x) 1 | . 1 . 1 . 1 1 Average Overweight (x) . | . . . . . . . Largest Inventory Capacity 20 | . 15 15 15 15 20 20 Average Capacity 15 | . 12 15 15 15 19 16 Most Carried 19 | . 15 15 15 15 19 19 Average Carried 14 | . 11 15 14 15 16 15 Final Capacity 20 | 8 15 15 15 15 20 5 Final Carried 19 | 6 15 15 15 15 19 5 Class Distribution -------------------- 54% | Mutant 23% | Tank 13% | Scavenger-Tank 7% | Scavenger-Mutant Dominant Class ---------------- Mutant | -10/Materials Mutant | -10/Mines Scavenger-Tank | -9/Materials Tank | -9/Mines Mutant | -9/Exiles Tank | -8/Mines Resources | -11 -10 -10 -9 -9 -9 -8 ----------- Run | Scr Mat Min Mat Min Exi Min Matter Collected 1901 | 200 232 82 1099 217 56 15 Remotely . | . . . . . . . Salvage Created 2990 | . 827 50 1826 263 . 24 Parts 188 | . 63 2 97 21 . 5 Haulers Intercepted 7 | . 2 . 5 . . . Recyclers Shooed 5 | . 1 . 3 1 . . Parts Field Recycled . | . . . . . . . Retrieved Matter . | . . . . . . . Parts Self-Destructed . | . . . . . . . Prevented . | . . . . . . . Kills | -11 -10 -10 -9 -9 -9 -8 ------- Run | Scr Mat Min Mat Min Exi Min Combat Hostiles Destroyed 63 | . 17 3 30 9 . 4 Guns 37 | . 14 3 13 7 . . Cannons 12 | . 1 . 11 . . . AOE 13 | . 1 . 6 2 . 4 Classes Destroyed 12 | . 7 . 4 1 . . Worker 2 | . . . 1 1 . . Builder 2 | . 2 . . . . . Tunneler 2 | . . . 1 1 . . Hauler 7 | . 2 . 5 . . . Recycler 5 | . 2 . 3 . . . Operator 2 | . 1 . 1 . . . Watcher 5 | . 2 . 3 . . . Swarmer 23 | . 9 3 3 4 . 4 Grunt 30 | . 8 . 18 4 . . Brawler 2 | . . . 2 . . . Duelist 1 | . . . . 1 . . Sentry 7 | . . . 7 . . . Best Kill Streak 7 | . 7 3 4 4 . 4 Combat Bots Only 4 | . 4 3 3 4 . 4 Max Kills in Single Turn 4 | . 2 1 2 1 . 4 Gunslinging 1 | . . . 1 . . . Exploded 4 | . 1 . 2 1 . 4 Melee . | . . . . . . . Uniques/NPCs Destroyed . | . . . . . . . Combat | -11 -10 -10 -9 -9 -9 -8 -------- Run | Scr Mat Min Mat Min Exi Min Damage Taken 2755 | . 306 180 923 236 86 1024 Core 533 | . 82 40 168 . 33 210 Absorbed by Shields . | . . . . . . . Redirected to Shielding 15 | . . . 15 . . . Regen/Repaired (Parts) 277 | . 69 . 208 . . . Core Remaining (%) 75 | 100 . 51 . . . . Volleys Fired 157 | . 36 10 93 16 1 1 Largest 3 | . 2 2 3 3 1 1 Hottest 168 | . 112 46 168 69 33 33 Shots Fired 391 | . 72 20 253 44 1 1 Gun 310 | . 66 20 182 42 . . Cannon 72 | . 6 . 66 . . . Launcher 9 | . . . 5 2 1 1 Special . | . . . . . . . Kinetic 252 | . 8 20 182 42 . . Thermal . | . . . . . . . Explosive 9 | . . . 5 2 1 1 Electromagnetic 130 | . 64 . 66 . . . Robot Hit Streak 11 | . 10 3 11 6 . . Robot Miss Streak 4 | . 3 4 4 4 . . Penetration Max . | . . . . . . . Secondary Targets 4 | . . 1 1 2 . . Max Gunslinging Chain 1 | . . 1 1 1 . . Shots Hit Robots 229 | . 59 10 138 22 . . Core Hits 124 | . 40 3 63 14 . 4 Critical Kills . | . . . . . . . Critical Parts Destroyed . | . . . . . . . Critical Strikes 3 | . 1 . 2 . . . Corrupt 3 | . 1 . 2 . . . Melee Attacks . | . . . . . . . Impact . | . . . . . . . Slashing . | . . . . . . . Piercing . | . . . . . . . Sneak Attacks . | . . . . . . . Combat Hostiles . | . . . . . . . Follow-up Attacks . | . . . . . . . Damage Inflicted 4938 | . 1143 177 2964 473 . 181 Guns 2808 | . 776 161 1567 304 . . Cannons 958 | . 70 . 888 . . . Explosions 956 | . 168 . 480 127 . 181 Melee . | . . . . . . . Ramming 216 | . 129 16 29 42 . . Kinetic 2141 | . 109 161 1567 304 . . Thermal 371 | . 168 . 203 . . . Explosive 585 | . . . 277 127 . 181 Electromagnetic 1625 | . 737 . 888 . . . Impact . | . . . . . . . Slashing . | . . . . . . . Piercing . | . . . . . . . Highest Corruption 1 | . . . 1 1 1 1 Average Corruption 1 | . . . 1 1 1 1 Corruption Purged . | . . . . . . . Corruption Blocked . | . . . . . . . Effects 40 | . . . 23 8 9 . Message Errors 8 | . . . 5 2 1 . Matter Fused 9 | . . . 6 1 2 . Energy Discharges 6 | . . . 1 2 3 . Data Loss (minor) 8 | . . . 8 . . . Data Loss (major) 4 | . . . 1 2 1 . Misfires 1 | . . . 1 . . . Alerts 3 | . . . . 1 2 . Weapon Failures 1 | . . . 1 . . . Overload Shots . | . . . . . . . Overflow Damage 63 | . . . 63 . . . Projectiles 25 | . . . 25 . . . Explosions 38 | . . . 38 . . . Melee . | . . . . . . . Knockbacks . | . . . . . . . Impact . | . . . . . . . Kinetic . | . . . . . . . Secondary . | . . . . . . . Self-Inflicted Damage 241 | . 16 . 205 . . 20 Shots 6 | . 1 . 4 . . 1 Rammed 18 | . . 1 10 7 . . Targets Rammed 64 | . 44 1 11 8 . . Kicked 43 | . 43 . . . . . Crushed 3 | . 1 . 1 1 . . Highest Temperature 204 | . 204 12 204 55 . . Average Temperature 47 | . 62 6 45 17 . . Received Heat Transfer 462 | . 72 . 300 81 . 9 Siege Activations . | . . . . . . . Robots Corrupted 1 | . 1 . . . . . Combat Hostiles 1 | . 1 . . . . . Parts Fried 5 | . 2 . 3 . . . Impact Corruptions . | . . . . . . . Robots Melted . | . . . . . . . Combat Hostiles . | . . . . . . . Parts Melted . | . . . . . . . Heat Transferred 600 | . 200 . 400 . . . Parts Sabotaged . | . . . . . . . Parts Stolen . | . . . . . . . Parts Stripped . | . . . . . . . Power Chain Reactions 9 | . 5 . 4 . . . Missiles Intercepted . | . . . . . . . Alert | -11 -10 -10 -9 -9 -9 -8 ------- Run | Scr Mat Min Mat Min Exi Min Peak Influence 683 | . 333 84 683 460 . 99 Initial 260 | . . 24 . 260 . . Average 215 | . 182 42 259 310 . 91 Maximum Alert Level 2 | . 1 . 2 2 . . Low Security (%) 54 | . 55 100 54 16 . 100 Level 1 31 | . 44 . 19 64 . . Level 2 13 | . . . 26 19 . . Level 3 . | . . . . . . . Level 4 . | . . . . . . . Level 5 . | . . . . . . . High Security . | . . . . . . . Max Security . | . . . . . . . Squads Dispatched 13 | . 5 . 7 . . 1 Investigation 8 | . 4 . 3 . . 1 Extermination . | . . . . . . . Reinforcement 4 | . 1 . 3 . . . Assault 1 | . . . 1 . . . Garrison . | . . . . . . . Intercept . | . . . . . . . Searches Triggered . | . . . . . . . Construction Impeded 1 | . . . 1 . . . Haulers Reinforced . | . . . . . . . Active Scanning Responses . | . . . . . . . Cargo Convoy Interrupts . | . . . . . . . Stealth | -11 -10 -10 -9 -9 -9 -8 --------- Run | Scr Mat Min Mat Min Exi Min Distress Signals 7 | . 2 . 5 . . . Communications Jammed . | . . . . . . . Distress Signals . | . . . . . . . Times Spotted 94 | . 25 3 48 11 5 2 Peak Tracking Total 9 | . 6 3 5 4 9 2 Tactical Retreats 3 | . . . 2 1 . . Traps | -11 -10 -10 -9 -9 -9 -8 ------- Run | Scr Mat Min Mat Min Exi Min Traps Triggered 3 | . 3 . . . . . Indirectly . | . . . . . . . Trap Hack Attempts . | . . . . . . . Triggered . | . . . . . . . Disarmed . | . . . . . . . Reprogrammed . | . . . . . . . Reused . | . . . . . . . Traps Extracted . | . . . . . . . Installed . | . . . . . . . Triggered . | . . . . . . . Machines | -11 -10 -10 -9 -9 -9 -8 ---------- Run | Scr Mat Min Mat Min Exi Min Machines Disabled 10 | . 3 . 6 . 1 . Max in Single Turn 3 | . 2 . 3 . 1 . Machines Sabotaged . | . . . . . . . Garrisons Compromised . | . . . . . . . Overloaded Fab Kills . | . . . . . . . Hacking | -11 -10 -10 -9 -9 -9 -8 --------- Run | Scr Mat Min Mat Min Exi Min Machines Accessed 22 | . 8 . 11 . 2 1 Terminals 13 | . 5 . 7 . . 1 Fabricators . | . . . . . . . Repair Stations 3 | . 1 . 2 . . . Recycling Units 4 | . 2 . 2 . . . Scanalyzers . | . . . . . . . Garrison Access . | . . . . . . . Total Hacks 64 | . 28 . 30 . 2 4 Successful 37 | . 16 . 19 . 2 . Failed 25 | . 11 . 10 . . 4 Catastrophic 2 | . 1 . . . . 1 Database Lockouts 2 | . 1 . 1 . . . Manual 33 | . 13 . 15 . 1 4 Terminals 45 | . 20 . 21 . . 4 Fabricators . | . . . . . . . Repair Stations 11 | . 4 . 7 . . . Recycling Units 6 | . 4 . 2 . . . Scanalyzers . | . . . . . . . Garrison Access . | . . . . . . . Terminal Hacks 17 | . 7 . 8 . 2 . Record 1 | . . . . . 1 . Part Schematic 3 | . 1 . 2 . . . Prototype ID Bank 1 | . 1 . . . . . Branch Access Points 1 | . . . 1 . . . Emergency Access Points 2 | . 2 . . . . . Alert Level 1 | . . . 1 . . . Unreport Threat 1 | . . . 1 . . . Locate Traps 1 | . . . 1 . . . Hauler Manifests 2 | . 1 . 1 . . . Registered Components 1 | . 1 . . . . . Zone Layout 2 | . 1 . 1 . . . EX-Prototype ID Bank 1 | . . . . . 1 . Fabricator Hacks . | . . . . . . . Repair Station Hacks 10 | . 4 . 6 . . . Scan Component 5 | . 2 . 3 . . . Repair 5 | . 2 . 3 . . . Recycling Unit Hacks . | . . . . . . . Scanalyzer . | . . . . . . . Garrison Access Hacks . | . . . . . . . Unauthorized Hacks 10 | . 5 . 5 . . . Terminals 6 | . 3 . 3 . . . Botnet 5 | . 2 . 3 . . . Operators 1 | . 1 . . . . . Fabricators . | . . . . . . . Repair Stations . | . . . . . . . Recycling Units 4 | . 2 . 2 . . . Tunnel 4 | . 2 . 2 . . . Scanalyzers . | . . . . . . . Garrison Access . | . . . . . . . Data Cores Recovered . | . . . . . . . Used . | . . . . . . . Hacking Detections 14 | . 6 . 7 . . 1 Full Trace Events 2 | . . . 1 . . 1 Feedback Events 1 | . . . 1 . . . Corruption 1 | . . . 1 . . . Feedback Blocked . | . . . . . . . Robot Schematics Acquired . | . . . . . . . Robots Built . | . . . . . . . Authchips . | . . . . . . . Time . | . . . . . . . Total Robot Build Rating . | . . . . . . . Part Schematics Acquired 2 | . 1 . 1 . . . Parts Built . | . . . . . . . Authchips . | . . . . . . . Time . | . . . . . . . Total Part Build Rating . | . . . . . . . Parts Repaired 5 | . 2 . 3 . . . Time 148 | . 52 . 96 . . . Parts Recycled . | . . . . . . . Recycled Matter . | . . . . . . . Retrieved Matter . | . . . . . . . Retrieved Components . | . . . . . . . Parts Scanalyzed . | . . . . . . . Part Schematics Acquired . | . . . . . . . Parts Damaged . | . . . . . . . Bothacking | -11 -10 -10 -9 -9 -9 -8 ------------ Run | Scr Mat Min Mat Min Exi Min Used RIF Installer . | . . . . . . . Robots Hacked . | . . . . . . . Non-combat . | . . . . . . . Combat . | . . . . . . . Robot Hacks Applied . | . . . . . . . Relay Couplers Released . | . . . . . . . Fabnet Peak Effective % . | . . . . . . . Robots Rewired . | . . . . . . . Allies Hacked . | . . . . . . . Hacks Repelled . | . . . . . . . Allies | -11 -10 -10 -9 -9 -9 -8 -------- Run | Scr Mat Min Mat Min Exi Min Total Allies . | . . . . . . . Largest Group . | . . . . . . . Highest-Rated Group . | . . . . . . . Highest-Rated Ally . | . . . . . . . Total Orders . | . . . . . . . Ally Attacks . | . . . . . . . Total Damage . | . . . . . . . Kills . | . . . . . . . Allies Corrupted . | . . . . . . . Allies Melted . | . . . . . . . Intel | -11 -10 -10 -9 -9 -9 -8 ------- Run | Scr Mat Min Mat Min Exi Min Robot Analysis Total . | . . . . . . . Derelict Logs Recovered 4 | . . 2 . 2 . . Drone Launches . | . . . . . . . Drone Recoveries . | . . . . . . . Exploration | -11 -10 -10 -9 -9 -9 -8 ------------- Run | Scr Mat Min Mat Min Exi Min Turns Passed 7697 | . 2021 738 2491 958 1436 53 Spaces Moved 3521 | 1 1018 442 833 561 636 30 Core 15 | . . . . . . 15 Treads 2604 | . 117 442 833 561 636 15 Legs 902 | 1 901 . . . . . Wheels . | . . . . . . . Hover . | . . . . . . . Flight . | . . . . . . . Fastest Speed 50 | 120 120 160 160 160 160 50 Average Speed 187 | 120 161 160 225 160 222 145 Slowest Speed 240 | 120 190 160 240 160 240 240 Overloaded Moves . | . . . . . . . Propulsion Burnouts . | . . . . . . . Robots Hopped . | . . . . . . . Cave-ins Triggered . | . . . . . . . Exploration Rate (%) 63 | 1 98 99 73 90 70 13 Regions Visited 6 Branch Regions 4 Pre-discovered Areas 5 | . 2 . 2 . 1 . Known Exits Taken 1 | . . . 1 . . . Unknown Exits Taken 5 | 1 1 1 . 1 1 . Scrap Searched 2 | . . 1 . 1 . . Spaces Dug 34 | . . . 24 . . 10 Terrain Destroyed 118 | . 12 . 79 11 6 10 Melee . | . . . . . . . Projectile . | . . . . . . . AOE 118 | . 12 . 79 11 6 10 Terrain Rammed . | . . . . . . . Walls Destroyed . | . . . . . . . Machines Disabled . | . . . . . . . Actions | -11 -10 -10 -9 -9 -9 -8 --------- Run | Scr Mat Min Mat Min Exi Min Total 4346 | . 1320 456 1280 592 658 40 Wait 447 | . 163 1 283 . . . Move 3515 | . 1017 441 832 560 635 30 Hop . | . . . . . . . Pick Up 41 | . 22 1 10 . 7 1 Fast Attach 17 | . 6 1 7 . 3 . Attach 14 | . 6 . 6 . . 2 Detach 9 | . 4 . 2 . 3 . Swap 32 | . 8 . 16 5 2 1 Drop 50 | . 14 1 20 3 7 5 Fire 157 | . 36 10 93 16 1 1 Melee . | . . . . . . . Ram . | . . . . . . . Kick 43 | . 43 . . . . . Crush 21 | . 1 1 11 8 . . Escape Stasis . | . . . . . . . Rewire . | . . . . . . . Trap . | . . . . . . . Miscellaneous . | . . . . . . . Route ------- -11/Scrapyard -10/Materials (discovered 4 exits: *Mat x3 / [*Min]) -10/Mines (discovered 2 exits: *Mat x2) -9/Materials (discovered 4 exits: [*Mat x2] / *Min x2) -9/Mines (discovered 2 exits: [*Mat] / *Exi) -9/Exiles (discovered 2 exits: *Min x2) -8/Mines History --------- Turn | Location | Event 1 | -11/Scrapyard | Discovered new exit (range 0) 1 | -11/Scrapyard | Entered Materials 131 | -10/Materials | Discovered new exit (range 9) 317 | -10/Materials | Build established: Mutant 797 | -10/Materials | Central database locked down 981 | -10/Materials | Discovered new exit (range 5) 1577 | -10/Materials | Discovered new exit (range 16) 1795 | -10/Materials | Discovered new exit (range 9) 1912 | -10/Materials | Repaired Lgt. Treads 1940 | -10/Materials | Repaired Lgt. Treads 2022 | -10/Materials | Entered Mines 2034 | -10/Mines | Discovered new exit (range 13) 2329 | -10/Mines | Learned Materials stockpile data 2405 | -10/Mines | Discovered new exit (range 14) 2760 | -10/Mines | Entered Materials 2760 | -9/Materials | Evolved 2 slots: Utility x1, Weapon x1 2813 | -9/Materials | Identified exit to Mines 3056 | -9/Materials | Build established: Tank 3965 | -9/Materials | Discovered new exit (range 16) 4047 | -9/Materials | Build established: Scavenger-Mutant 4369 | -9/Materials | Discovered new exit (range 3) 4398 | -9/Materials | Repaired Med. Armor Plating? 4702 | -9/Materials | Build established: Scavenger-Tank 4760 | -9/Materials | First assault squad dispatched 4957 | -9/Materials | Repaired Autogun 4990 | -9/Materials | Repaired Med. Armor Plating 5195 | -9/Materials | Central database locked down 5251 | -9/Materials | Entered Mines 5462 | -9/Mines | Build established: Tank 5572 | -9/Mines | Learned 4 Materials zone layouts 5706 | -9/Mines | Discovered new exit (range 8) 6058 | -9/Mines | Deemed a non-threat by the Exiles lab entrance 6202 | -9/Mines | Discovered new exit (range 5) 6209 | -9/Mines | Entered Exiles 6236 | -9/Exiles | Discovered new exit (range 15) 6256 | -9/Exiles | Met 8R-AWN 6276 | -9/Exiles | Met EX-HEX 6337 | -9/Exiles | Met EX-DEC 6481 | -9/Exiles | Discovered new exit (range 10) 6520 | -9/Exiles | Build established: Mutant 6610 | -9/Exiles | Learned location of Zion (-6) 6997 | -9/Exiles | Met EX-BIN 7253 | -9/Exiles | Aligned with FarCom system 7255 | -9/Exiles | Given EX-Vault access code 7313 | -9/Exiles | Opened EX-Vault 7373 | -9/Exiles | Warned to stay clear of 0b10 Research branches 7605 | -9/Exiles | Attacked by the Exiles 7645 | -9/Exiles | Core integrity fell below 50% 7645 | -9/Exiles | Entered Mines 7685 | -8/Mines | 99-TNT came to Exiles' defense 7695 | -8/Mines | Core integrity fell below 20% 7698 | -8/Mines | Destroyed by 99-TNT with 99-TNT's Nukerbomber Last Messages --------------- 07660_ Current location identified: Mines 07660_ ALERT: Suspicious activity at Terminal M001. Dispatching Investigation squad. 07666_ The unstable cave ceiling collapses. 07685_ 99-TNT: "I came as fast as I could... Wait, it was you!" 07686_ Lgt. Nuclear Core destroyed. 07686_ Autogun destroyed. 07686_ Imp. Treads destroyed. 07687_ Dropped Hcp. Storage Unit. 07688_ Dropped Rigged Nuclear Core. 07688_ Acquired Hcp. Storage Unit. 07689_ Dropped Hrd. Light Armor Plating. 07690_ The unstable cave ceiling collapses. 07690_ Dropped Autogun. 07690_ Dropped Imp. Heat Sink. 07691_ The unstable cave ceiling collapses. 07692_ Autogun destroyed. 07692_ G-47 Trooper destroyed. 07694_ The unstable cave ceiling collapses. 07698_ Imp. Treads destroyed. Map ----- +----------------------------------------------------+ | | | | | | | | | | | | | | | | | | | | | | | | | | | | | | | | | | | ?????????????????????????????????????????????????? | | ?????????????????????????????????????#######?????# | | ???????????????????????########?????## ##???## | | ???????????????????#?### ##???## # # ##### | | ???????????????????# # ##### ## | | ???????????????????# ## [ # #= | | ??????????????????## d ! | | ??????????????????# # | | ???????????????????# @ [ #### | | ??????????????????# # ##??## | | ??????????????????# ##????# | | ?????????????????# # # ##?????? | | ???????????????" # ##??????? | | ??????????????"" # ##???????? | | ??????????????"" # ### # #????????? | | ?????????????? ?## ?# # =g #????????? | | ????????????? ???## ?### #????????? | | ???????????????????# ???### ???????? | | ??????????????????? ??????## # #### ??????? | | ?????????????????? ???????###### ##????#?????? | | ?????????????????? t ???????????? #???????????? | | ?????????????????? ##????????????###???????????? | | ?????????????????????????????????????????????????? | | ?????????????????????????????????????????????????? | | ?????????????????????????????????????????????????? | | ?????????????????????????????????????????????????? | | ?????????????????????????????????????????????????? | | ?????????????????????????????????????????????????? | | ?????????????????????????????????????????????????? | | ?????????????????????????????????????????????????? | | ?????????????????????????????????????????????????? | | ?????????????????????????????????????????????????? | | ?????????????????????????????????????????????????? | +----------------------------------------------------+ Best States ------------- Heat Dissipation 42 Energy Generation 14 Energy Capacity 265 Matter Stores 300 Matter Capacity 300 Sight Range 16 Terrain Scan Density 10 Armor Coverage 375 Weapon Shielding 33 Evasion (%) 55 Targeting Accuracy 5 Recoil Reduction 2 Item Schematics ----------------- Huge Storage Unit | -10/Materials | Hacked Hcp. Storage Unit | -9/Materials | Hacked Robot Schematics ------------------ None Fabricated ------------ Nothing Alien Tech Used ----------------- None Achievements -------------- None Challenges ------------ None Game ------ Seed MetafiberSmartbombMaul Manual? 0 Play Time 00:30:56 Cumulative 738.9 hours Start 2022.06.30 @ 17:53:50 End 2022.06.30 @ 18:26:38 Sessions 1 Manual Loads 0 Difficulty Rogue Special Mode None Game No. 324 Rogue 323 Adventurer 1 Explorer 0 Win Type - Total 83 Types 24/9/12/3/2/1/30/1/1 Lore% 98 Gallery% 99 Achievement% 90 Wizard Run 0 Options --------- ASCII 1 Keyboard 1 Movement Numpad Keybinds 0 Fullscreen 0 Font 18/Smallcaps Map View 76x50 Tactical HUD 1 Map Filters NONE Filters NONE Steam 1 RUN: 1fe70bc4-5547-454b-8b9d-b2fc5492da6a